[Event "Titled Tuesday Blitz April 18 Late 2023"]
[White "Omranalhosani21"]
[Black "Kushko, Dmitriy"]
[BlackFideId "14162261"]
[WhiteElo "2566"]
[BlackElo "2230"]
[Result "1-0"]
[Round "06"]
[TimeControl "180+2"]
[Date "2023.04.18"]
[WhiteClock "0:00:03"]
[BlackClock "0:00:08"]

1. d4 {[%clk 0:03:00]}  g6 {[%clk 0:03:00]} 2. c4 {[%clk 0:02:58]}  Bg7 {[%clk 0:03:01]} 3. Nc3 {[%clk 0:02:58]}  d6 {[%clk 0:03:01]} 4. e4 {[%clk 0:02:58]}  e5 {[%clk 0:03:01]} 5. Nf3 {[%clk 0:02:58]}  Bg4 {[%clk 0:03:01]} 6. dxe5 {[%clk 0:02:55]}  dxe5 {[%clk 0:03:02]} 7. Qxd8+ {[%clk 0:02:55]}  Kxd8 {[%clk 0:03:03]} 8. Be2 {[%clk 0:02:55]}  Bxf3 {[%clk 0:03:00]} 9. Bxf3 {[%clk 0:02:55]}  Nc6 {[%clk 0:03:00]} 10. Be3 {[%clk 0:02:55]}  Bh6 {[%clk 0:02:57]} 11. O-O-O+ {[%clk 0:02:52]}  Nd4 {[%clk 0:02:57]} 12. c5 {[%clk 0:02:43]}  Kc8 {[%clk 0:02:47]} 13. Kb1 {[%clk 0:02:27]}  Bxe3 {[%clk 0:02:47]} 14. fxe3 {[%clk 0:02:17]}  Ne6 {[%clk 0:02:27]} 15. Bg4 {[%clk 0:02:11]}  Nf6 {[%clk 0:02:27]} 16. Bxe6+ {[%clk 0:02:06]}  fxe6 {[%clk 0:02:28]} 17. Rhf1 {[%clk 0:02:06]}  Rf8 {[%clk 0:02:27]} 18. Rf2 {[%clk 0:01:54]}  Nd7 {[%clk 0:02:24]} 19. Rxf8+ {[%clk 0:01:49]}  Nxf8 {[%clk 0:02:25]} 20. Rf1 {[%clk 0:01:46]}  Kd7 {[%clk 0:02:19]} 21. Rf7+ {[%clk 0:01:43]}  Kc6 {[%clk 0:02:19]} 22. b4 {[%clk 0:01:44]}  Rd8 {[%clk 0:02:02]} 23. Kc2 {[%clk 0:01:43]}  b6 {[%clk 0:01:22]} 24. b5+ {[%clk 0:01:14]}  Kxc5 {[%clk 0:01:21]} 25. Rxc7+ {[%clk 0:01:14]}  Kd6 {[%clk 0:01:22]} 26. Rxa7 {[%clk 0:01:13]}  Nd7 {[%clk 0:01:23]} 27. a4 {[%clk 0:01:05]}  Rf8 {[%clk 0:01:21]} 28. Kb3 {[%clk 0:01:00]}  Rf2 {[%clk 0:01:14]} 29. a5 {[%clk 0:00:59]}  bxa5 {[%clk 0:00:56]} 30. Rxa5 {[%clk 0:00:59]}  Rxg2 {[%clk 0:00:56]} 31. Ra6+ {[%clk 0:00:58]}  Kc7 {[%clk 0:00:53]} 32. Ra7+ {[%clk 0:00:52]}  Kd6 {[%clk 0:00:51]} 33. Ra6+ {[%clk 0:00:48]}  Kc7 {[%clk 0:00:50]} 34. Ra7+ {[%clk 0:00:40]}  Kc8 {[%clk 0:00:51]} 35. Na4 {[%clk 0:00:36]}  Re2 {[%clk 0:00:43]} 36. b6 {[%clk 0:00:24]}  Rxe3+ {[%clk 0:00:42]} 37. Kb4 {[%clk 0:00:24]}  Rxe4+ {[%clk 0:00:24]} 38. Kb5 {[%clk 0:00:23]}  Re1 {[%clk 0:00:25]} 39. Kc6 {[%clk 0:00:15]}  Rc1+ {[%clk 0:00:13]} 40. Kd6 {[%clk 0:00:14]}  e4 {[%clk 0:00:13]} 41. Ra8+ {[%clk 0:00:11]}  Kb7 {[%clk 0:00:12]} 42. Ra7+ {[%clk 0:00:11]}  Kc8 {[%clk 0:00:11]} 43. Ra8+ {[%clk 0:00:05]}  Nb8 {[%clk 0:00:11]} 44. Nc5 {[%clk 0:00:03]}  Rxc5 {[%clk 0:00:10]} 45. Kxc5 {[%clk 0:00:04]}  Kb7 {[%clk 0:00:10]} 46. Ra7+ {[%clk 0:00:04]}  Kc8 {[%clk 0:00:10]} 47. Ra3 {[%clk 0:00:04]}  Nd7+ {[%clk 0:00:09]} 48. Kc6 {[%clk 0:00:03]}  Ne5+ {[%clk 0:00:10]} 49. Kb5 {[%clk 0:00:04]}  Ng4 {[%clk 0:00:09]} 50. Ra4 {[%clk 0:00:03]}  Nf6 {[%clk 0:00:09]} 51. Kc6 {[%clk 0:00:02]}  Kb8 {[%clk 0:00:08]} 52. b7 {[%clk 0:00:03]} 1-0


[Site "https://www.chess.com"]

[Event "Titled Tuesday Blitz April 18 Late 2023"]
[White "Timmermans, Mark"]
[Black "Zarnicki, Pablo"]
[WhiteFideId "1026399"]
[BlackFideId "100137"]
[WhiteElo "2460"]
[BlackElo "2468"]
[Result "1-0"]
[Round "06"]
[TimeControl "180+2"]
[Date "2023.04.18"]
[WhiteClock "0:00:23"]
[BlackClock "0:00:21"]

1. Nf3 {[%clk 0:02:59]}  Nf6 {[%clk 0:02:56]} 2. c4 {[%clk 0:02:58]}  g6 {[%clk 0:02:56]} 3. Nc3 {[%clk 0:02:57]}  Bg7 {[%clk 0:02:57]} 4. g3 {[%clk 0:02:58]}  d6 {[%clk 0:02:57]} 5. Bg2 {[%clk 0:02:58]}  O-O {[%clk 0:02:57]} 6. O-O {[%clk 0:02:59]}  c5 {[%clk 0:02:58]} 7. Rb1 {[%clk 0:02:59]}  Nc6 {[%clk 0:02:58]} 8. a3 {[%clk 0:02:59]}  a5 {[%clk 0:02:57]} 9. e3 {[%clk 0:02:57]}  Bf5 {[%clk 0:02:56]} 10. d3 {[%clk 0:02:57]}  Qd7 {[%clk 0:02:56]} 11. Re1 {[%clk 0:02:56]}  Bh3 {[%clk 0:02:50]} 12. Bh1 {[%clk 0:02:56]}  e5 {[%clk 0:02:50]} 13. Nd5 {[%clk 0:02:56]}  Nxd5 {[%clk 0:02:47]} 14. cxd5 {[%clk 0:02:57]}  Ne7 {[%clk 0:02:45]} 15. e4 {[%clk 0:02:57]}  h6 {[%clk 0:02:44]} 16. b4 {[%clk 0:02:50]}  cxb4 {[%clk 0:02:42]} 17. axb4 {[%clk 0:02:51]}  a4 {[%clk 0:02:42]} 18. b5 {[%clk 0:02:51]}  f5 {[%clk 0:02:40]} 19. Ba3 {[%clk 0:02:50]}  Rf7 {[%clk 0:02:34]} 20. Qd2 {[%clk 0:02:23]}  Raf8 {[%clk 0:02:27]} 21. Qb4 {[%clk 0:02:23]}  Nc8 {[%clk 0:02:16]} 22. Nd2 {[%clk 0:02:18]}  f4 {[%clk 0:02:10]} 23. f3 {[%clk 0:01:54]}  fxg3 {[%clk 0:02:09]} 24. hxg3 {[%clk 0:01:55]}  h5 {[%clk 0:02:09]} 25. Kf2 {[%clk 0:01:53]}  Bh6 {[%clk 0:02:09]} 26. Ke2 {[%clk 0:01:53]}  Qe7 {[%clk 0:02:00]} 27. Nc4 {[%clk 0:01:51]}  Qg5 {[%clk 0:01:57]} 28. Bc1 {[%clk 0:01:49]}  Qxg3 {[%clk 0:01:52]} 29. Bxh6 {[%clk 0:01:49]}  Rxf3 {[%clk 0:01:40]} 30. Bxf3 {[%clk 0:01:44]}  Rxf3 {[%clk 0:01:36]} 31. Kd2 {[%clk 0:01:42]}  Rxd3+ {[%clk 0:01:04]} 32. Kc2 {[%clk 0:01:42]}  Rd4 {[%clk 0:00:56]} 33. Qc3 {[%clk 0:01:36]}  Qf2+ {[%clk 0:00:48]} 34. Bd2 {[%clk 0:01:28]}  Bg2 {[%clk 0:00:48]} 35. Rbd1 {[%clk 0:01:05]}  Bxe4+ {[%clk 0:00:42]} 36. Kc1 {[%clk 0:01:06]}  Rd3 {[%clk 0:00:39]} 37. Qa5 {[%clk 0:00:57]}  Bf5 {[%clk 0:00:35]} 38. Qd8+ {[%clk 0:00:56]}  Kf7 {[%clk 0:00:30]} 39. Qc7+ {[%clk 0:00:35]}  Kg8 {[%clk 0:00:30]} 40. Ne3 {[%clk 0:00:30]}  Rxd2 {[%clk 0:00:27]} 41. Nxf5 {[%clk 0:00:28]}  Ra2 {[%clk 0:00:21]} 42. Qg7# {[%clk 0:00:23]} 1-0


[Site "https://www.chess.com"]

[Event "Titled Tuesday Blitz April 18 Late 2023"]
[White "Ashraf, Artin"]
[Black "Al-Tarboush, Ward"]
[WhiteFideId "22514805"]
[BlackFideId "7601450"]
[WhiteElo "2188"]
[BlackElo "2265"]
[Result "0-1"]
[Round "06"]
[TimeControl "180+2"]
[Date "2023.04.18"]
[WhiteClock "0:00:02"]
[BlackClock "0:01:55"]

1. e4 {[%clk 0:03:00]}  c5 {[%clk 0:02:59]} 2. Nf3 {[%clk 0:03:00]}  Nc6 {[%clk 0:02:59]} 3. Bb5 {[%clk 0:02:56]}  e6 {[%clk 0:02:59]} 4. Bxc6 {[%clk 0:02:49]}  bxc6 {[%clk 0:03:00]} 5. O-O {[%clk 0:02:48]}  Ne7 {[%clk 0:02:58]} 6. b3 {[%clk 0:02:46]}  f6 {[%clk 0:02:49]} 7. Nc3 {[%clk 0:02:39]}  e5 {[%clk 0:02:47]} 8. Na4 {[%clk 0:02:21]}  Ng6 {[%clk 0:02:46]} 9. Ba3 {[%clk 0:02:18]}  d6 {[%clk 0:02:47]} 10. c3 {[%clk 0:02:17]}  Bg4 {[%clk 0:02:47]} 11. h3 {[%clk 0:02:15]}  Be6 {[%clk 0:02:39]} 12. d4 {[%clk 0:02:12]}  cxd4 {[%clk 0:02:38]} 13. cxd4 {[%clk 0:02:13]}  Be7 {[%clk 0:02:38]} 14. Rc1 {[%clk 0:02:10]}  Rc8 {[%clk 0:02:36]} 15. Qe2 {[%clk 0:02:00]}  O-O {[%clk 0:02:34]} 16. Qa6 {[%clk 0:02:00]}  Qd7 {[%clk 0:02:34]} 17. Rc3 {[%clk 0:01:33]}  Nf4 {[%clk 0:02:29]} 18. Rfc1 {[%clk 0:01:30]}  Bxh3 {[%clk 0:02:24]} 19. gxh3 {[%clk 0:01:27]}  Qxh3 {[%clk 0:02:25]} 20. Ne1 {[%clk 0:01:11]}  Qg4+ {[%clk 0:02:25]} 21. Kf1 {[%clk 0:00:44]}  Qh5 {[%clk 0:02:25]} 22. Kg1 {[%clk 0:00:38]}  Ne2+ {[%clk 0:02:24]} 23. Kg2 {[%clk 0:00:36]}  Nxc1 {[%clk 0:02:20]} 24. Bxc1 {[%clk 0:00:28]}  f5 {[%clk 0:02:20]} 25. Rxc6 {[%clk 0:00:21]}  Rxc6 {[%clk 0:02:18]} 26. Qxc6 {[%clk 0:00:22]}  Rf6 {[%clk 0:02:14]} 27. Kf1 {[%clk 0:00:17]}  exd4 {[%clk 0:02:09]} 28. Qd5+ {[%clk 0:00:12]}  Kh8 {[%clk 0:02:08]} 29. Nb2 {[%clk 0:00:12]}  Qh1+ {[%clk 0:02:07]} 30. Ke2 {[%clk 0:00:12]}  Qxe4+ {[%clk 0:02:08]} 31. Qxe4 {[%clk 0:00:10]}  fxe4 {[%clk 0:02:09]} 32. Nc4 {[%clk 0:00:07]}  d5 {[%clk 0:02:09]} 33. Nb2 {[%clk 0:00:02]}  d3+ {[%clk 0:02:09]} 34. Kf1 {[%clk 0:00:01]}  Bc5 {[%clk 0:02:08]} 35. Nbxd3 {[%clk 0:00:01]}  exd3 {[%clk 0:02:08]} 36. Nxd3 {[%clk 0:00:02]}  Bb6 {[%clk 0:02:09]} 37. a4 {[%clk 0:00:02]}  h5 {[%clk 0:02:06]} 38. b4 {[%clk 0:00:02]}  h4 {[%clk 0:02:04]} 39. a5 {[%clk 0:00:03]}  Bd4 {[%clk 0:02:04]} 40. Kg2 {[%clk 0:00:02]}  h3+ {[%clk 0:01:55]} 41. Kxh3 {[%clk 0:00:02]}  Rf3+ {[%clk 0:01:55]} 0-1


[Site "https://www.chess.com"]

[Event "Titled Tuesday Blitz April 18 Late 2023"]
[White "Sanchez Alvares, Kelvin Antonio"]
[Black "Yuan, Qingyu"]
[WhiteFideId "3906680"]
[BlackFideId "8609772"]
[WhiteElo "2217"]
[BlackElo "2359"]
[Result "1-0"]
[Round "06"]
[TimeControl "180+2"]
[Date "2023.04.18"]
[WhiteClock "0:01:18"]
[BlackClock "0:00:04"]

1. e4 {[%clk 0:03:00]}  e5 {[%clk 0:03:00]} 2. Nf3 {[%clk 0:02:58]}  Nc6 {[%clk 0:03:00]} 3. d4 {[%clk 0:02:57]}  exd4 {[%clk 0:03:00]} 4. Nxd4 {[%clk 0:02:58]}  Nf6 {[%clk 0:03:01]} 5. Nxc6 {[%clk 0:02:58]}  bxc6 {[%clk 0:03:00]} 6. e5 {[%clk 0:02:58]}  Qe7 {[%clk 0:03:00]} 7. Qe2 {[%clk 0:02:58]}  Nd5 {[%clk 0:03:00]} 8. c4 {[%clk 0:02:58]}  Ba6 {[%clk 0:02:59]} 9. b3 {[%clk 0:02:57]}  g6 {[%clk 0:02:54]} 10. Bb2 {[%clk 0:02:57]}  Bg7 {[%clk 0:02:54]} 11. Nd2 {[%clk 0:02:56]}  O-O {[%clk 0:02:54]} 12. O-O-O {[%clk 0:02:56]}  Nb6 {[%clk 0:02:44]} 13. h4 {[%clk 0:02:54]}  d5 {[%clk 0:02:41]} 14. exd6 {[%clk 0:02:52]}  Bxb2+ {[%clk 0:02:37]} 15. Kxb2 {[%clk 0:02:52]}  Qf6+ {[%clk 0:02:37]} 16. Kb1 {[%clk 0:02:52]}  cxd6 {[%clk 0:02:31]} 17. Ne4 {[%clk 0:02:51]}  Qf5 {[%clk 0:01:48]} 18. g4 {[%clk 0:02:44]}  Qf4 {[%clk 0:01:47]} 19. g5 {[%clk 0:02:35]}  d5 {[%clk 0:01:43]} 20. Nf6+ {[%clk 0:02:33]}  Kh8 {[%clk 0:01:31]} 21. Qb2 {[%clk 0:02:33]}  d4 {[%clk 0:01:27]} 22. Rxd4 {[%clk 0:02:29]}  Qe5 {[%clk 0:01:26]} 23. Bg2 {[%clk 0:02:25]}  Rad8 {[%clk 0:01:14]} 24. Rhd1 {[%clk 0:02:24]}  Rxd4 {[%clk 0:01:12]} 25. Qxd4 {[%clk 0:02:15]}  Qxd4 {[%clk 0:01:12]} 26. Rxd4 {[%clk 0:02:15]}  c5 {[%clk 0:01:13]} 27. Rd6 {[%clk 0:02:13]}  Bc8 {[%clk 0:01:06]} 28. Be4 {[%clk 0:01:55]}  Be6 {[%clk 0:00:55]} 29. a4 {[%clk 0:01:44]}  Kg7 {[%clk 0:00:23]} 30. a5 {[%clk 0:01:41]}  Nc8 {[%clk 0:00:23]} 31. Rc6 {[%clk 0:01:38]}  h6 {[%clk 0:00:23]} 32. Rxc5 {[%clk 0:01:37]}  hxg5 {[%clk 0:00:24]} 33. hxg5 {[%clk 0:01:36]}  Rh8 {[%clk 0:00:23]} 34. Rc7 {[%clk 0:01:33]}  Rh2 {[%clk 0:00:18]} 35. Bd5 {[%clk 0:01:28]}  Bf5+ {[%clk 0:00:10]} 36. Kc1 {[%clk 0:01:21]}  Nd6 {[%clk 0:00:08]} 37. c5 {[%clk 0:01:20]}  Nb5 {[%clk 0:00:04]} 38. Rxf7+ {[%clk 0:01:19]}  Kh8 {[%clk 0:00:04]} 39. Rf8+ {[%clk 0:01:18]} 1-0


[Site "https://www.chess.com"]

[Event "Titled Tuesday Blitz April 18 Late 2023"]
[White "angelgab3"]
[Black "Begmuratov, Alisher"]
[BlackFideId "14203367"]
[WhiteElo "2529"]
[BlackElo "2387"]
[Result "0-1"]
[Round "06"]
[TimeControl "180+2"]
[Date "2023.04.18"]
[WhiteClock "0:00:06"]
[BlackClock "0:00:06"]

1. e4 {[%clk 0:03:00]}  c6 {[%clk 0:02:59]} 2. d4 {[%clk 0:03:00]}  d5 {[%clk 0:03:00]} 3. e5 {[%clk 0:03:01]}  Bf5 {[%clk 0:02:59]} 4. Nc3 {[%clk 0:03:01]}  e6 {[%clk 0:02:59]} 5. g4 {[%clk 0:03:01]}  Bg6 {[%clk 0:02:59]} 6. Nge2 {[%clk 0:03:02]}  h5 {[%clk 0:02:58]} 7. Nf4 {[%clk 0:03:02]}  Bh7 {[%clk 0:02:58]} 8. Nxh5 {[%clk 0:03:03]}  c5 {[%clk 0:02:58]} 9. dxc5 {[%clk 0:02:58]}  Nc6 {[%clk 0:02:58]} 10. Bb5 {[%clk 0:02:55]}  g6 {[%clk 0:02:48]} 11. Ng3 {[%clk 0:02:49]}  Bxc5 {[%clk 0:02:46]} 12. h4 {[%clk 0:02:31]}  Qb6 {[%clk 0:02:29]} 13. O-O {[%clk 0:02:11]}  g5 {[%clk 0:02:20]} 14. Bxg5 {[%clk 0:02:08]}  Ne7 {[%clk 0:01:56]} 15. Qe2 {[%clk 0:02:06]}  a6 {[%clk 0:01:43]} 16. Na4 {[%clk 0:01:52]}  Qa7 {[%clk 0:01:01]} 17. Bxc6+ {[%clk 0:01:23]}  Nxc6 {[%clk 0:00:57]} 18. Nxc5 {[%clk 0:01:23]}  Qxc5 {[%clk 0:00:58]} 19. c3 {[%clk 0:01:24]}  Kd7 {[%clk 0:00:47]} 20. Rad1 {[%clk 0:01:18]}  Kc7 {[%clk 0:00:44]} 21. Qf3 {[%clk 0:00:57]}  Raf8 {[%clk 0:00:14]} 22. Rfe1 {[%clk 0:00:55]}  Kc8 {[%clk 0:00:13]} 23. Qe3 {[%clk 0:00:47]}  Qb5 {[%clk 0:00:12]} 24. b3 {[%clk 0:00:44]}  Rfg8 {[%clk 0:00:12]} 25. Rc1 {[%clk 0:00:36]}  Rg6 {[%clk 0:00:10]} 26. c4 {[%clk 0:00:33]}  dxc4 {[%clk 0:00:10]} 27. Rxc4 {[%clk 0:00:34]}  Rhg8 {[%clk 0:00:09]} 28. Ne4 {[%clk 0:00:26]}  Kb8 {[%clk 0:00:09]} 29. Nd6 {[%clk 0:00:24]}  Qa5 {[%clk 0:00:08]} 30. Rec1 {[%clk 0:00:20]}  Qxe5 {[%clk 0:00:06]} 31. Qxe5 {[%clk 0:00:18]}  Nxe5 {[%clk 0:00:07]} 32. Rc8+ {[%clk 0:00:19]}  Rxc8 {[%clk 0:00:07]} 33. Rxc8+ {[%clk 0:00:20]}  Ka7 {[%clk 0:00:07]} 34. Be3+ {[%clk 0:00:21]}  b6 {[%clk 0:00:07]} 35. Rc7+ {[%clk 0:00:22]}  Ka8 {[%clk 0:00:08]} 36. g5 {[%clk 0:00:19]}  Rg8 {[%clk 0:00:06]} 37. Bxb6 {[%clk 0:00:16]}  Bd3 {[%clk 0:00:03]} 38. Ra7+ {[%clk 0:00:07]}  Kb8 {[%clk 0:00:03]} 39. Nxf7 {[%clk 0:00:08]}  Nf3+ {[%clk 0:00:03]} 40. Kh1 {[%clk 0:00:06]}  Nxh4 {[%clk 0:00:04]} 41. Re7 {[%clk 0:00:06]}  Be4+ {[%clk 0:00:03]} 42. Kh2 {[%clk 0:00:05]}  Nf3+ {[%clk 0:00:03]} 43. Kg3 {[%clk 0:00:06]}  Bd5 {[%clk 0:00:04]} 44. Kf4 {[%clk 0:00:06]}  Ka8 {[%clk 0:00:04]} 45. Ne5 {[%clk 0:00:06]}  Rf8+ {[%clk 0:00:04]} 46. Ke3 {[%clk 0:00:05]}  Nxe5 {[%clk 0:00:04]} 47. Ra7+ {[%clk 0:00:05]}  Kb8 {[%clk 0:00:04]} 48. Rg7 {[%clk 0:00:04]}  Ng4+ {[%clk 0:00:04]} 49. Kd4 {[%clk 0:00:05]}  Rf4+ {[%clk 0:00:04]} 50. Kc5 {[%clk 0:00:05]}  Rf8 {[%clk 0:00:04]} 51. Kd6 {[%clk 0:00:04]}  Rc8 {[%clk 0:00:05]} 52. Bc7+ {[%clk 0:00:03]}  Kb7 {[%clk 0:00:05]} 53. f4 {[%clk 0:00:04]}  Ne3 {[%clk 0:00:05]} 54. Ba5+ {[%clk 0:00:05]}  Kb8 {[%clk 0:00:05]} 55. Bb6 {[%clk 0:00:05]}  Nf5+ {[%clk 0:00:05]} 56. Ke5 {[%clk 0:00:05]}  Nxg7 {[%clk 0:00:06]} 57. Kf6 {[%clk 0:00:05]}  Nf5 {[%clk 0:00:06]} 58. g6 {[%clk 0:00:05]}  Kb7 {[%clk 0:00:06]} 59. Ba5 {[%clk 0:00:05]}  Rc2 {[%clk 0:00:06]} 60. g7 {[%clk 0:00:05]}  Nxg7 {[%clk 0:00:06]} 61. Kxg7 {[%clk 0:00:06]} 0-1


[Site "https://www.chess.com"]

[Event "Titled Tuesday Blitz April 18 Late 2023"]
[White "Korchmar, Vasiliy"]
[Black "Graif, William"]
[WhiteFideId "24131750"]
[BlackFideId "2609835"]
[WhiteElo "2370"]
[BlackElo "2205"]
[Result "1-0"]
[Round "06"]
[TimeControl "180+2"]
[Date "2023.04.18"]
[WhiteClock "0:01:48"]
[BlackClock "0:00:11"]

1. e4 {[%clk 0:03:00]}  e5 {[%clk 0:02:55]} 2. Nf3 {[%clk 0:03:00]}  Bc5 {[%clk 0:02:55]} 3. Bc4 {[%clk 0:02:59]}  Nf6 {[%clk 0:02:55]} 4. d3 {[%clk 0:02:59]}  Nc6 {[%clk 0:02:54]} 5. c3 {[%clk 0:02:59]}  d6 {[%clk 0:02:54]} 6. Bg5 {[%clk 0:03:00]}  h6 {[%clk 0:02:49]} 7. Bh4 {[%clk 0:02:59]}  a6 {[%clk 0:02:44]} 8. Nbd2 {[%clk 0:02:59]}  Ba7 {[%clk 0:02:41]} 9. O-O {[%clk 0:02:59]}  g5 {[%clk 0:02:37]} 10. Bg3 {[%clk 0:03:00]}  h5 {[%clk 0:02:11]} 11. h4 {[%clk 0:02:58]}  Bg4 {[%clk 0:02:10]} 12. Qb3 {[%clk 0:02:57]}  gxh4 {[%clk 0:01:32]} 13. Bxh4 {[%clk 0:02:52]}  Na5 {[%clk 0:01:13]} 14. Bxf7+ {[%clk 0:02:48]}  Kf8 {[%clk 0:01:08]} 15. Qa4 {[%clk 0:02:49]}  Kxf7 {[%clk 0:00:59]} 16. Qxa5 {[%clk 0:02:49]}  Bxf3 {[%clk 0:00:39]} 17. Nxf3 {[%clk 0:02:49]}  Rg8 {[%clk 0:00:39]} 18. d4 {[%clk 0:02:49]}  Qd7 {[%clk 0:00:30]} 19. Ng5+ {[%clk 0:01:54]}  Rxg5 {[%clk 0:00:22]} 20. Bxg5 {[%clk 0:01:55]}  Rg8 {[%clk 0:00:19]} 21. f4 {[%clk 0:01:52]}  Nxe4 {[%clk 0:00:16]} 22. Qd5+ {[%clk 0:01:50]}  Qe6 {[%clk 0:00:13]} 23. Qxe4 {[%clk 0:01:51]}  Qg4 {[%clk 0:00:11]} 24. fxe5+ {[%clk 0:01:49]}  Ke8 {[%clk 0:00:10]} 25. Qxg4 {[%clk 0:01:50]}  hxg4 {[%clk 0:00:11]} 26. Bf6 {[%clk 0:01:48]} 1-0


[Site "https://www.chess.com"]

[Event "Titled Tuesday Blitz April 18 Late 2023"]
[White "Larino Nieto, David"]
[Black "TheKnightOfBosnia"]
[WhiteFideId "2256444"]
[WhiteElo "2506"]
[BlackElo "2507"]
[Result "1-0"]
[Round "06"]
[TimeControl "180+2"]
[Date "2023.04.18"]
[WhiteClock "0:00:06"]
[BlackClock "0:00:07"]

1. e4 {[%clk 0:03:00]}  e5 {[%clk 0:02:59]} 2. Nf3 {[%clk 0:03:00]}  Nc6 {[%clk 0:03:00]} 3. Bb5 {[%clk 0:02:59]}  a6 {[%clk 0:03:00]} 4. Bxc6 {[%clk 0:03:00]}  dxc6 {[%clk 0:03:01]} 5. O-O {[%clk 0:03:00]}  Bd6 {[%clk 0:03:01]} 6. d4 {[%clk 0:02:57]}  exd4 {[%clk 0:03:01]} 7. Qxd4 {[%clk 0:02:57]}  f6 {[%clk 0:03:02]} 8. Nc3 {[%clk 0:02:55]}  Ne7 {[%clk 0:02:59]} 9. e5 {[%clk 0:02:46]}  fxe5 {[%clk 0:02:52]} 10. Nxe5 {[%clk 0:02:44]}  Be6 {[%clk 0:02:50]} 11. Bg5 {[%clk 0:02:37]}  O-O {[%clk 0:02:47]} 12. Rfe1 {[%clk 0:02:36]}  Nf5 {[%clk 0:02:23]} 13. Qd2 {[%clk 0:02:19]}  Qc8 {[%clk 0:02:15]} 14. Nd3 {[%clk 0:02:03]}  h6 {[%clk 0:02:10]} 15. Bf4 {[%clk 0:01:50]}  Bxf4 {[%clk 0:02:03]} 16. Nxf4 {[%clk 0:01:51]}  Bf7 {[%clk 0:02:03]} 17. Re5 {[%clk 0:01:49]}  Nd6 {[%clk 0:02:01]} 18. b3 {[%clk 0:01:42]}  Qg4 {[%clk 0:01:48]} 19. h3 {[%clk 0:01:39]}  Qh4 {[%clk 0:01:47]} 20. Rae1 {[%clk 0:01:28]}  Rae8 {[%clk 0:01:44]} 21. Rxe8 {[%clk 0:01:22]}  Rxe8 {[%clk 0:01:44]} 22. Rxe8+ {[%clk 0:01:22]}  Bxe8 {[%clk 0:01:44]} 23. Qe3 {[%clk 0:01:17]}  Qf6 {[%clk 0:01:37]} 24. a4 {[%clk 0:01:09]}  Bf7 {[%clk 0:01:32]} 25. Ne4 {[%clk 0:01:06]}  Qe5 {[%clk 0:01:31]} 26. Nc5 {[%clk 0:00:49]}  Qxe3 {[%clk 0:01:19]} 27. fxe3 {[%clk 0:00:50]}  a5 {[%clk 0:01:06]} 28. Kf2 {[%clk 0:00:29]}  b6 {[%clk 0:01:06]} 29. Na6 {[%clk 0:00:29]}  g5 {[%clk 0:00:58]} 30. Nd3 {[%clk 0:00:28]}  Ne8 {[%clk 0:00:45]} 31. e4 {[%clk 0:00:28]}  Be6 {[%clk 0:00:43]} 32. Nb8 {[%clk 0:00:26]}  c5 {[%clk 0:00:41]} 33. Nc6 {[%clk 0:00:25]}  Kf7 {[%clk 0:00:38]} 34. Ke3 {[%clk 0:00:23]}  Kf6 {[%clk 0:00:36]} 35. e5+ {[%clk 0:00:23]}  Kf7 {[%clk 0:00:35]} 36. Ke4 {[%clk 0:00:21]}  Ng7 {[%clk 0:00:34]} 37. g4 {[%clk 0:00:19]}  Ke8 {[%clk 0:00:33]} 38. c4 {[%clk 0:00:15]}  Kd7 {[%clk 0:00:33]} 39. Na7 {[%clk 0:00:14]}  h5 {[%clk 0:00:31]} 40. Kf3 {[%clk 0:00:12]}  hxg4+ {[%clk 0:00:30]} 41. hxg4 {[%clk 0:00:13]}  c6 {[%clk 0:00:29]} 42. Nf2 {[%clk 0:00:12]}  Kc7 {[%clk 0:00:26]} 43. Ne4 {[%clk 0:00:13]}  Kb7 {[%clk 0:00:25]} 44. Nxg5 {[%clk 0:00:07]}  Bd7 {[%clk 0:00:26]} 45. Ne4 {[%clk 0:00:05]}  Kxa7 {[%clk 0:00:25]} 46. Kf4 {[%clk 0:00:05]}  Kb7 {[%clk 0:00:22]} 47. Kg5 {[%clk 0:00:06]}  Kc7 {[%clk 0:00:21]} 48. Kf6 {[%clk 0:00:07]}  Ne8+ {[%clk 0:00:20]} 49. Kf7 {[%clk 0:00:05]}  Bxg4 {[%clk 0:00:16]} 50. Kxe8 {[%clk 0:00:05]}  Bd1 {[%clk 0:00:14]} 51. Nd2 {[%clk 0:00:05]}  Bg4 {[%clk 0:00:12]} 52. Ke7 {[%clk 0:00:05]}  b5 {[%clk 0:00:11]} 53. e6 {[%clk 0:00:05]}  bxa4 {[%clk 0:00:11]} 54. bxa4 {[%clk 0:00:06]}  Bd1 {[%clk 0:00:11]} 55. Kf8 {[%clk 0:00:05]}  Bh5 {[%clk 0:00:09]} 56. Nb3 {[%clk 0:00:04]}  Kd6 {[%clk 0:00:08]} 57. e7 {[%clk 0:00:04]}  Ke5 {[%clk 0:00:08]} 58. Nxa5 {[%clk 0:00:04]}  Kd4 {[%clk 0:00:08]} 59. Kg7 {[%clk 0:00:03]}  Kc3 {[%clk 0:00:07]} 60. Kh6 {[%clk 0:00:03]}  Be8 {[%clk 0:00:07]} 61. Kg7 {[%clk 0:00:03]}  Kb4 {[%clk 0:00:08]} 62. Kf8 {[%clk 0:00:04]}  Bh5 {[%clk 0:00:08]} 63. Nxc6+ {[%clk 0:00:04]}  Kxa4 {[%clk 0:00:08]} 64. Ne5 {[%clk 0:00:04]}  Kb3 {[%clk 0:00:08]} 65. Nf7 {[%clk 0:00:05]}  Kxc4 {[%clk 0:00:07]} 66. e8=Q {[%clk 0:00:06]} 1-0


[Site "https://www.chess.com"]